[Event "Rapid della Domenica"]
[Site "Chess.com"]
[Date "2020.05.17"]
[Round "1"]
[White "crippo"]
[Black "SanSecondoPR"]
[Result "1-0"]
[WhiteElo "1524"]
[BlackElo "1266"]
[TimeControl "720+3"]
[EndTime "6:04:41 PDT"]
[Termination "crippo ha vinto per abbandono"]

1. e4 {[%clk 0:11:59.9]} 1... e5 {[%clk 0:11:59]} 2. Nf3 {[%clk 0:11:59.6]} 2...
Nc6 {[%clk 0:11:57.8]} 3. Bc4 {[%clk 0:12:01.1]} 3... Nf6 {[%clk 0:11:55]} 4. d3
{[%clk 0:12:01.9]} 4... h6 {[%clk 0:11:55.3]} 5. Be3 {[%clk 0:12:02.1]} 5... Be7
{[%clk 0:11:52]} 6. Nc3 {[%clk 0:12:02.8]} 6... O-O {[%clk 0:11:50.3]} 7. a3
{[%clk 0:12:03.3]} 7... d6 {[%clk 0:11:40.6]} 8. Qd2 {[%clk 0:12:03.4]} 8... Bg4
{[%clk 0:11:36.3]} 9. h3 {[%clk 0:12:01]} 9... Bxf3 {[%clk 0:11:34.7]} 10. gxf3
{[%clk 0:12:03.1]} 10... Nd4 {[%clk 0:11:35.2]} 11. Bxd4 {[%clk 0:12:04.1]}
11... exd4 {[%clk 0:11:35]} 12. Nd5 {[%clk 0:12:04.8]} 12... Nxd5 {[%clk
0:11:31.5]} 13. Bxd5 {[%clk 0:12:05.4]} 13... c6 {[%clk 0:11:19.2]} 14. Ba2
{[%clk 0:12:06.6]} 14... Qb6 {[%clk 0:11:01.7]} 15. O-O-O {[%clk 0:12:06]} 15...
c5 {[%clk 0:10:28.6]} 16. Rhg1 {[%clk 0:12:06.1]} 16... Bf6 {[%clk 0:10:17.7]}
17. Qxh6 {[%clk 0:12:00]} 17... Rae8 {[%clk 0:09:57]} 18. Rxg7+ {[%clk
0:11:51.1]} 18... Bxg7 {[%clk 0:09:55]} 19. Rg1 {[%clk 0:11:51.7]} 1-0

[Event "Rapid della Domenica"]
[Site "Chess.com"]
[Date "2020.05.17"]
[Round "1"]
[White "toninoiuorio"]
[Black "caramante"]
[Result "0-1"]
[WhiteElo "1406"]
[BlackElo "1577"]
[TimeControl "720+3"]
[EndTime "6:09:02 PDT"]
[Termination "caramante ha vinto per scaccomatto"]

1. d4 {[%clk 0:11:55.5]} 1... Nf6 {[%clk 0:12:00.5]} 2. c4 {[%clk 0:11:57]} 2...
g6 {[%clk 0:11:59.8]} 3. Nc3 {[%clk 0:11:58.9]} 3... Bg7 {[%clk 0:12:01]} 4. e4
{[%clk 0:12:00.7]} 4... d6 {[%clk 0:12:02.9]} 5. f3 {[%clk 0:12:02.5]} 5... O-O
{[%clk 0:12:04.1]} 6. Be3 {[%clk 0:12:04.9]} 6... Nbd7 {[%clk 0:12:06.1]} 7. Qd2
{[%clk 0:12:06.8]} 7... c6 {[%clk 0:12:03.4]} 8. O-O-O {[%clk 0:12:07.8]} 8...
a6 {[%clk 0:12:01.1]} 9. Kb1 {[%clk 0:12:09.5]} 9... b5 {[%clk 0:12:00]} 10. c5
{[%clk 0:12:09]} 10... Qc7 {[%clk 0:11:55.8]} 11. cxd6 {[%clk 0:12:08.8]} 11...
exd6 {[%clk 0:11:56.6]} 12. Rc1 {[%clk 0:12:11]} 12... Bb7 {[%clk 0:11:53.7]}
13. Bd3 {[%clk 0:12:11.5]} 13... Nb6 {[%clk 0:11:52.9]} 14. Nge2 {[%clk
0:12:10.8]} 14... Nc4 {[%clk 0:11:53.4]} 15. Bxc4 {[%clk 0:12:11.2]} 15... bxc4
{[%clk 0:11:55]} 16. Na4 {[%clk 0:12:05.9]} 16... Rab8 {[%clk 0:11:47.8]} 17.
Rc2 {[%clk 0:11:57.7]} 17... Bc8 {[%clk 0:11:38.7]} 18. Rhc1 {[%clk 0:11:57.5]}
18... Qe7 {[%clk 0:11:28.2]} 19. Rxc4 {[%clk 0:11:56]} 19... Bd7 {[%clk
0:11:27.2]} 20. Nec3 {[%clk 0:11:34.6]} 20... Rfc8 {[%clk 0:11:25.8]} 21. g4
{[%clk 0:11:24.4]} 21... Ne8 {[%clk 0:11:19.5]} 22. d5 {[%clk 0:11:21.7]} 22...
c5 {[%clk 0:11:16.1]} 23. b3 {[%clk 0:11:11]} 23... Nc7 {[%clk 0:11:10.9]} 24.
Nb2 {[%clk 0:11:09]} 24... Nb5 {[%clk 0:11:11.2]} 25. Nxb5 {[%clk 0:11:09.3]}
25... axb5 {[%clk 0:11:11.4]} 26. R4c2 {[%clk 0:11:10.3]} 26... Ra8 {[%clk
0:11:09.2]} 27. Bg5 {[%clk 0:10:56.5]} 27... Qe5 {[%clk 0:10:53.8]} 28. Bf4
{[%clk 0:10:54.7]} 28... Qe7 {[%clk 0:10:38.7]} 29. h4 {[%clk 0:10:39.5]} 29...
Rc7 {[%clk 0:10:35.1]} 30. Qh2 {[%clk 0:10:40.4]} 30... Rca7 {[%clk 0:10:34.3]}
31. Nd1 {[%clk 0:10:16.9]} 31... Ra6 {[%clk 0:10:33]} 32. h5 {[%clk 0:10:15]}
32... g5 {[%clk 0:10:26.2]} 33. Bd2 {[%clk 0:10:08.3]} 33... b4 {[%clk
0:10:17.8]} 34. Ne3 {[%clk 0:10:00.8]} 34... Qf6 {[%clk 0:10:16.5]} 35. e5
{[%clk 0:09:57]} 35... dxe5 {[%clk 0:10:14.8]} 36. Rxc5 {[%clk 0:09:15.2]} 36...
e4 {[%clk 0:10:12.6]} 37. fxe4 {[%clk 0:08:42.5]} 37... Qb2# {[%clk 0:10:01.9]}
0-1

[Event "Rapid della Domenica"]
[Site "Chess.com"]
[Date "2020.05.17"]
[Round "1"]
[White "laremaro"]
[Black "sirmale49"]
[Result "0-1"]
[WhiteElo "1606"]
[BlackElo "1450"]
[TimeControl "720+3"]
[EndTime "6:16:04 PDT"]
[Termination "sirmale49 ha vinto per abbandono"]

1. e4 {[%clk 0:12:02.5]} 1... d5 {[%clk 0:11:58.6]} 2. Nc3 {[%clk 0:12:02.5]}
2... d4 {[%clk 0:11:59.6]} 3. Nce2 {[%clk 0:12:02.4]} 3... Nc6 {[%clk
0:11:57.4]} 4. Ng3 {[%clk 0:12:04.1]} 4... Nf6 {[%clk 0:11:52.8]} 5. Bb5 {[%clk
0:12:04.7]} 5... Bd7 {[%clk 0:11:46.4]} 6. Nf3 {[%clk 0:11:54.9]} 6... e5 {[%clk
0:11:42.7]} 7. d3 {[%clk 0:11:52]} 7... Bd6 {[%clk 0:11:32.6]} 8. O-O {[%clk
0:11:48.6]} 8... a6 {[%clk 0:11:26.7]} 9. Bc4 {[%clk 0:11:47.8]} 9... Be6 {[%clk
0:11:20.3]} 10. Bb3 {[%clk 0:11:43.2]} 10... O-O {[%clk 0:11:14.4]} 11. Bxe6
{[%clk 0:11:12]} 11... fxe6 {[%clk 0:11:12.6]} 12. Ng5 {[%clk 0:11:08.6]} 12...
Qe7 {[%clk 0:11:04.1]} 13. Nh5 {[%clk 0:11:00.1]} 13... h6 {[%clk 0:10:24.2]}
14. Nxf6+ {[%clk 0:10:44]} 14... Qxf6 {[%clk 0:10:23.2]} 15. Nh3 {[%clk
0:10:28.3]} 15... Ne7 {[%clk 0:10:01.2]} 16. f4 {[%clk 0:10:25.7]} 16... exf4
{[%clk 0:09:54.2]} 17. Nxf4 {[%clk 0:10:20]} 17... Bxf4 {[%clk 0:09:52.2]} 18.
Bxf4 {[%clk 0:10:16.8]} 18... Ng6 {[%clk 0:09:48.3]} 19. Bxc7 {[%clk 0:09:59.9]}
19... Qxf1+ {[%clk 0:09:30.8]} 20. Qxf1 {[%clk 0:09:58.8]} 20... Rxf1+ {[%clk
0:09:31.9]} 21. Rxf1 {[%clk 0:10:00.3]} 21... e5 {[%clk 0:09:30.5]} 22. c4
{[%clk 0:09:55.6]} 22... dxc3 {[%clk 0:09:29.5]} 23. bxc3 {[%clk 0:09:57.6]}
23... Rc8 {[%clk 0:09:30.4]} 24. Ba5 {[%clk 0:09:56.4]} 24... b6 {[%clk
0:09:23.2]} 25. Bxb6 {[%clk 0:09:55.9]} 25... Rxc3 {[%clk 0:09:23.4]} 26. Rd1
{[%clk 0:09:51.6]} 26... Rc2 {[%clk 0:08:59.7]} 27. a4 {[%clk 0:09:45.3]} 27...
Nf4 {[%clk 0:09:01]} 28. g3 {[%clk 0:09:46.5]} 28... Nh3+ {[%clk 0:08:41.6]} 29.
Kh1 {[%clk 0:09:47.4]} 29... Ng5 {[%clk 0:08:06.1]} 30. a5 {[%clk 0:08:35.7]}
30... Nf3 {[%clk 0:08:05.5]} 31. Bg1 {[%clk 0:08:32.2]} 31... Ra2 {[%clk
0:07:49.9]} 32. Rf1 {[%clk 0:08:28.3]} 32... Nxg1 {[%clk 0:07:06.2]} 33. Kxg1
{[%clk 0:08:26.3]} 33... Rxa5 {[%clk 0:07:07.5]} 34. Rf5 {[%clk 0:08:28]} 34...
Rb5 {[%clk 0:06:50.7]} 35. h4 {[%clk 0:08:17.3]} 35... a5 {[%clk 0:06:35.3]} 36.
Kf2 {[%clk 0:08:02.1]} 36... a4 {[%clk 0:06:36.4]} 37. Ke3 {[%clk 0:08:03.3]}
37... a3 {[%clk 0:06:38.4]} 38. Rf1 {[%clk 0:07:56.9]} 38... a2 {[%clk
0:06:39.1]} 39. Ra1 {[%clk 0:07:57.7]} 39... Ra5 {[%clk 0:06:39.7]} 40. Kd2
{[%clk 0:07:59]} 40... Kf7 {[%clk 0:06:40.4]} 41. d4 {[%clk 0:07:48.9]} 41...
exd4 {[%clk 0:06:38.5]} 42. Kd3 {[%clk 0:07:50.9]} 42... Ke6 {[%clk 0:06:39.9]}
43. Kxd4 {[%clk 0:07:51.6]} 43... Ra4+ {[%clk 0:06:41.3]} 44. Ke3 {[%clk
0:07:51.2]} 44... Ke5 {[%clk 0:06:43.1]} 45. Kf3 {[%clk 0:07:42.3]} 45... h5
{[%clk 0:06:36.5]} 46. g4 {[%clk 0:07:21.4]} 46... Ra3+ {[%clk 0:06:36.3]} 47.
Ke2 {[%clk 0:07:13]} 47... hxg4 {[%clk 0:06:38.1]} 48. Kf2 {[%clk 0:07:02.4]}
48... Kxe4 {[%clk 0:06:40]} 49. Kg2 {[%clk 0:07:03.6]} 49... g3 {[%clk
0:06:29.9]} 50. h5 {[%clk 0:06:45.9]} 50... Kf4 {[%clk 0:06:30.6]} 0-1

[Event "Rapid della Domenica"]
[Site "Chess.com"]
[Date "2020.05.17"]
[Round "1"]
[White "fausto2p"]
[Black "malberici"]
[Result "0-1"]
[WhiteElo "1201"]
[BlackElo "1549"]
[TimeControl "720+3"]
[EndTime "6:21:31 PDT"]
[Termination "malberici ha vinto per tempo"]

1. d4 {[%clk 0:12:01]} 1... Nf6 {[%clk 0:12:00.7]} 2. c4 {[%clk 0:12:00.7]} 2...
g6 {[%clk 0:12:02]} 3. Nc3 {[%clk 0:12:01.9]} 3... d6 {[%clk 0:12:03.8]} 4. e4
{[%clk 0:11:57.6]} 4... Bg7 {[%clk 0:12:04.8]} 5. f3 {[%clk 0:11:55.4]} 5... O-O
{[%clk 0:12:05.3]} 6. Be3 {[%clk 0:11:53.8]} 6... a6 {[%clk 0:12:04.9]} 7. g4
{[%clk 0:11:51.6]} 7... b5 {[%clk 0:12:00.4]} 8. cxb5 {[%clk 0:11:38.6]} 8...
axb5 {[%clk 0:11:58.4]} 9. Bxb5 {[%clk 0:11:32]} 9... c6 {[%clk 0:11:58.9]} 10.
Bc4 {[%clk 0:10:27.3]} 10... Qa5 {[%clk 0:11:52.2]} 11. Bd2 {[%clk 0:08:46]}
11... Qc7 {[%clk 0:11:44.4]} 12. Be3 {[%clk 0:08:32.4]} 12... Nbd7 {[%clk
0:11:24.1]} 13. Nge2 {[%clk 0:08:17.3]} 13... Nb6 {[%clk 0:11:15.9]} 14. Bd3
{[%clk 0:08:04.4]} 14... Ba6 {[%clk 0:11:13.1]} 15. Bxa6 {[%clk 0:07:58.4]}
15... Rxa6 {[%clk 0:11:14]} 16. b3 {[%clk 0:07:43.2]} 16... Nfd7 {[%clk
0:10:56.2]} 17. Qd2 {[%clk 0:07:31.2]} 17... c5 {[%clk 0:10:45.1]} 18. Nb5
{[%clk 0:06:39.7]} 18... Qb7 {[%clk 0:10:28.2]} 19. Bh6 {[%clk 0:06:16.6]} 19...
cxd4 {[%clk 0:10:04.5]} 20. Bxg7 {[%clk 0:06:17.2]} 20... Kxg7 {[%clk
0:10:05.3]} 21. Qxd4+ {[%clk 0:06:12.3]} 21... f6 {[%clk 0:09:55.4]} 22. g5
{[%clk 0:05:44.2]} 22... Ne5 {[%clk 0:09:53.3]} 23. gxf6+ {[%clk 0:05:26.6]}
23... Kxf6 {[%clk 0:09:46.6]} 24. f4 {[%clk 0:05:04.8]} 24... Rd8 {[%clk
0:09:44.4]} 25. fxe5+ {[%clk 0:05:01.8]} 25... dxe5 {[%clk 0:09:41.3]} 26. Qxd8
{[%clk 0:04:50.7]} 26... Qxe4 {[%clk 0:09:43.1]} 27. Rf1+ {[%clk 0:04:40.3]}
27... Ke6 {[%clk 0:09:34.5]} 28. Qc8+ {[%clk 0:04:27.6]} 28... Nxc8 {[%clk
0:09:30.7]} 29. Nc7+ {[%clk 0:04:18]} 29... Kd7 {[%clk 0:09:25]} 30. Nxa6 {[%clk
0:04:11.4]} 30... Qh4+ {[%clk 0:09:20.9]} 31. Ng3 {[%clk 0:04:04.8]} 31... Qxh2
{[%clk 0:09:17.7]} 32. Rd1+ {[%clk 0:03:52.1]} 32... Kc6 {[%clk 0:09:09.7]} 33.
Nb4+ {[%clk 0:03:41.2]} 33... Kb7 {[%clk 0:08:55.4]} 34. Ne2 {[%clk 0:03:17.1]}
34... Qh4+ {[%clk 0:08:52.3]} 35. Rf2 {[%clk 0:02:25.4]} 35... Qxb4+ {[%clk
0:08:51.2]} 36. Kf1 {[%clk 0:02:15.8]} 36... Nd6 {[%clk 0:08:46.9]} 37. Ng3
{[%clk 0:01:42]} 37... Qg4 {[%clk 0:08:08.6]} 38. Rd3 {[%clk 0:01:14.6]} 38...
e4 {[%clk 0:07:56.2]} 39. Rd4 {[%clk 0:01:03.9]} 39... Qxg3 {[%clk 0:07:52.9]}
40. Rb4+ {[%clk 0:01:01.6]} 40... Kc7 {[%clk 0:07:51.9]} 41. Rc2+ {[%clk
0:01:00]} 41... Kd7 {[%clk 0:07:50.2]} 42. Rg2 {[%clk 0:00:47.7]} 42... Qf3+
{[%clk 0:07:45.9]} 43. Rf2 {[%clk 0:00:47]} 43... Qh3+ {[%clk 0:07:37.8]} 44.
Rg2 {[%clk 0:00:45.6]} 44... Qd3+ {[%clk 0:07:37.8]} 45. Re2 {[%clk 0:00:41.1]}
45... e3 {[%clk 0:07:27.3]} 46. Ra4 {[%clk 0:00:11.2]} 46... Qd1+ {[%clk
0:07:24.1]} 47. Re1 {[%clk 0:00:10.9]} 47... e2+ {[%clk 0:07:20.3]} 0-1

[Event "Rapid della Domenica"]
[Site "Chess.com"]
[Date "2020.05.17"]
[Round "1"]
[White "sergiodone"]
[Black "pedrak"]
[Result "0-1"]
[WhiteElo "1436"]
[BlackElo "1677"]
[TimeControl "720+3"]
[EndTime "6:27:57 PDT"]
[Termination "pedrak ha vinto per tempo"]

1. e4 {[%clk 0:12:00]} 1... d5 {[%clk 0:11:59.9]} 2. exd5 {[%clk 0:11:59.2]}
2... Qxd5 {[%clk 0:12:00.8]} 3. c4 {[%clk 0:11:59.4]} 3... Qd8 {[%clk
0:11:47.2]} 4. d4 {[%clk 0:11:59.1]} 4... Nf6 {[%clk 0:11:47.7]} 5. Nc3 {[%clk
0:11:59.3]} 5... e6 {[%clk 0:11:47.4]} 6. Nge2 {[%clk 0:11:51.1]} 6... Be7
{[%clk 0:11:47]} 7. g3 {[%clk 0:11:52.6]} 7... O-O {[%clk 0:11:47]} 8. Bg2
{[%clk 0:11:54.2]} 8... c6 {[%clk 0:11:47.7]} 9. O-O {[%clk 0:11:55.4]} 9...
Nbd7 {[%clk 0:11:48.2]} 10. b3 {[%clk 0:11:37]} 10... Re8 {[%clk 0:11:42.9]} 11.
Bb2 {[%clk 0:11:38.5]} 11... Nf8 {[%clk 0:11:43]} 12. Qc2 {[%clk 0:11:19.4]}
12... Qc7 {[%clk 0:11:43.6]} 13. Rad1 {[%clk 0:11:19.3]} 13... a6 {[%clk
0:11:34]} 14. Ne4 {[%clk 0:11:02.9]} 14... Nxe4 {[%clk 0:11:31.5]} 15. Bxe4
{[%clk 0:10:51.9]} 15... Ng6 {[%clk 0:11:32.4]} 16. Qc3 {[%clk 0:10:40.7]} 16...
Bf6 {[%clk 0:11:23.2]} 17. Qf3 {[%clk 0:10:40.8]} 17... Bd7 {[%clk 0:11:09.7]}
18. h4 {[%clk 0:10:34.8]} 18... Nf8 {[%clk 0:10:46.5]} 19. Nf4 {[%clk
0:10:22.8]} 19... Rad8 {[%clk 0:10:05.9]} 20. Nh5 {[%clk 0:10:23.8]} 20... Be7
{[%clk 0:10:05.9]} 21. d5 {[%clk 0:06:48.2]} 21... f5 {[%clk 0:08:00.2]} 22. Bb1
{[%clk 0:05:29.7]} 22... g6 {[%clk 0:05:40.8]} 23. Ng7 {[%clk 0:05:28.2]} 23...
e5 {[%clk 0:05:38.6]} 24. Nxe8 {[%clk 0:05:29.7]} 24... Rxe8 {[%clk 0:05:40.5]}
25. h5 {[%clk 0:05:13.7]} 25... Bf6 {[%clk 0:05:20.6]} 26. d6 {[%clk 0:05:12.1]}
26... Qd8 {[%clk 0:05:21.6]} 27. Qe2 {[%clk 0:04:22.2]} 27... Kg7 {[%clk
0:05:00.9]} 28. Qd2 {[%clk 0:04:00.8]} 28... Ne6 {[%clk 0:04:39.2]} 29. h6+
{[%clk 0:04:00.8]} 29... Kf7 {[%clk 0:04:36.4]} 30. b4 {[%clk 0:03:49.2]} 30...
Bg5 {[%clk 0:04:33.1]} 31. Qc2 {[%clk 0:03:42.9]} 31... Bxh6 {[%clk 0:04:30.1]}
32. c5 {[%clk 0:03:42.6]} 32... Bg7 {[%clk 0:03:47.8]} 33. Rde1 {[%clk
0:03:43.9]} 33... Ng5 {[%clk 0:03:46.3]} 34. Kg2 {[%clk 0:03:31.7]} 34... Ne4
{[%clk 0:03:44.3]} 35. Rxe4 {[%clk 0:03:17]} 35... fxe4 {[%clk 0:03:43.6]} 36.
Qxe4 {[%clk 0:03:17.8]} 36... Bf5 {[%clk 0:03:40.8]} 37. Qc4+ {[%clk 0:03:05.9]}
37... Kf8 {[%clk 0:03:42.2]} 38. Bxf5 {[%clk 0:02:53.3]} 38... gxf5 {[%clk
0:03:43.7]} 39. Rh1 {[%clk 0:02:41]} 39... h6 {[%clk 0:03:42.8]} 40. Rh5 {[%clk
0:02:23.8]} 40... Qf6 {[%clk 0:03:36.7]} 41. f4 {[%clk 0:02:13.8]} 41... Qg6
{[%clk 0:03:36.3]} 42. Rh3 {[%clk 0:02:04.1]} 42... exf4 {[%clk 0:02:59.1]} 43.
d7 {[%clk 0:01:55.7]} 43... Rd8 {[%clk 0:02:58.4]} 44. Bxg7+ {[%clk 0:01:51.3]}
44... Qxg7 {[%clk 0:02:58.7]} 45. Qb3 {[%clk 0:01:46.2]} 45... Rxd7 {[%clk
0:02:55.9]} 46. Qc2 {[%clk 0:01:24]} 46... Qg6 {[%clk 0:02:26.7]} 47. Qe2 {[%clk
0:01:12.2]} 47... Re7 {[%clk 0:01:49.2]} 48. Qd2 {[%clk 0:01:03.6]} 48... f3+
{[%clk 0:01:46.8]} 49. Kf1 {[%clk 0:00:45.9]} 49... Kg7 {[%clk 0:01:36.3]} 50.
Qd4+ {[%clk 0:00:41]} 50... Kh7 {[%clk 0:01:35.6]} 51. Qd8 {[%clk 0:00:29.1]}
51... Qe6 {[%clk 0:01:32]} 52. Rxh6+ {[%clk 0:00:08.8]} 52... Kxh6 {[%clk
0:01:31.4]} 53. Qh8+ {[%clk 0:00:08.4]} 53... Kg6 {[%clk 0:01:32.1]} 0-1

[Event "Rapid della Domenica"]
[Site "Chess.com"]
[Date "2020.05.17"]
[Round "1"]
[White "Mrtre7"]
[Black "OMatteoWuO"]
[Result "1/2-1/2"]
[WhiteElo "1435"]
[BlackElo "1171"]
[TimeControl "720+3"]
[EndTime "6:32:38 PDT"]
[Termination "Partita patta per ripetizione di mosse"]

1. d4 {[%clk 0:11:59.9]} 1... Nf6 {[%clk 0:12:00.3]} 2. c4 {[%clk 0:12:01.1]}
2... g6 {[%clk 0:12:01.2]} 3. Nc3 {[%clk 0:12:02.7]} 3... Bg7 {[%clk 0:12:01.8]}
4. e4 {[%clk 0:12:04.4]} 4... d6 {[%clk 0:12:02.8]} 5. Nf3 {[%clk 0:12:05]} 5...
O-O {[%clk 0:12:02.5]} 6. Be2 {[%clk 0:12:06.8]} 6... Nbd7 {[%clk 0:12:02.6]} 7.
O-O {[%clk 0:12:08.2]} 7... e5 {[%clk 0:12:03.7]} 8. Be3 {[%clk 0:12:08.7]} 8...
a5 {[%clk 0:11:39.3]} 9. Na4 {[%clk 0:10:22.4]} 9... Nxe4 {[%clk 0:10:50.4]} 10.
dxe5 {[%clk 0:09:52.7]} 10... Nxe5 {[%clk 0:10:04]} 11. Nxe5 {[%clk 0:09:53.9]}
11... Bxe5 {[%clk 0:10:02.8]} 12. Qd5 {[%clk 0:09:26.8]} 12... Nf6 {[%clk
0:09:37.8]} 13. Qf3 {[%clk 0:09:26.4]} 13... Bg4 {[%clk 0:08:53.5]} 14. Qxb7
{[%clk 0:08:55.5]} 14... Bxe2 {[%clk 0:08:53.3]} 15. Rfe1 {[%clk 0:08:57.2]}
15... Bh5 {[%clk 0:08:50.2]} 16. f4 {[%clk 0:08:48.5]} 16... Rb8 {[%clk
0:08:24.6]} 17. Qc6 {[%clk 0:08:06.8]} 17... Bxb2 {[%clk 0:08:25]} 18. Rab1
{[%clk 0:08:05.8]} 18... Re8 {[%clk 0:07:58.6]} 19. Rxb2 {[%clk 0:07:39.7]}
19... Rxb2 {[%clk 0:07:55]} 20. Nxb2 {[%clk 0:07:40.9]} 20... Ng4 {[%clk
0:06:45.2]} 21. Bd2 {[%clk 0:07:06.2]} 21... Rxe1+ {[%clk 0:06:44.4]} 22. Bxe1
{[%clk 0:07:08]} 22... Qe7 {[%clk 0:06:40.2]} 23. Qa8+ {[%clk 0:06:15.8]} 23...
Kg7 {[%clk 0:06:39.3]} 24. Bc3+ {[%clk 0:06:15.9]} 24... f6 {[%clk 0:06:35.5]}
25. Qa7 {[%clk 0:05:39.7]} 25... Qe3+ {[%clk 0:05:29.5]} 26. Qxe3 {[%clk
0:05:39.2]} 26... Nxe3 {[%clk 0:05:30.1]} 27. Bxa5 {[%clk 0:05:36.7]} 27... c6
{[%clk 0:05:23.1]} 28. h3 {[%clk 0:05:35.1]} 28... Be2 {[%clk 0:05:06.5]} 29.
Kf2 {[%clk 0:04:57.5]} 29... Nxc4 {[%clk 0:05:05.6]} 30. Nxc4 {[%clk 0:04:55.2]}
30... Bxc4 {[%clk 0:05:06.5]} 31. Bc7 {[%clk 0:04:42.7]} 31... d5 {[%clk
0:05:07.6]} 32. a4 {[%clk 0:04:41.7]} 32... f5 {[%clk 0:05:02.7]} 33. Ke3 {[%clk
0:04:38.3]} 33... Kf7 {[%clk 0:04:52.4]} 34. Kd4 {[%clk 0:04:34.4]} 34... Ke7
{[%clk 0:04:43.2]} 35. Kc5 {[%clk 0:04:34.7]} 35... Kd7 {[%clk 0:04:44]} 36. Bb6
{[%clk 0:04:32.1]} 36... h6 {[%clk 0:04:31.7]} 37. g3 {[%clk 0:04:25.9]} 37...
g5 {[%clk 0:04:22.9]} 38. a5 {[%clk 0:03:42.7]} 38... Bb5 {[%clk 0:04:18.6]} 39.
Ba7 {[%clk 0:03:33]} 39... Kc7 {[%clk 0:04:05.2]} 40. Bb6+ {[%clk 0:03:32.3]}
40... Kb7 {[%clk 0:04:06.6]} 41. Kd4 {[%clk 0:03:27.7]} 41... gxf4 {[%clk
0:03:45.4]} 42. gxf4 {[%clk 0:03:28.4]} 42... h5 {[%clk 0:03:46]} 43. h4 {[%clk
0:03:27.8]} 43... Kc8 {[%clk 0:03:33.6]} 44. Ke5 {[%clk 0:03:15.2]} 44... Bd3
{[%clk 0:03:34.7]} 45. Kf6 {[%clk 0:03:00.8]} 45... Kd7 {[%clk 0:03:12]} 46. Kg6
{[%clk 0:02:55.8]} 46... Kd6 {[%clk 0:03:13]} 47. Kxh5 {[%clk 0:02:54.2]} 47...
c5 {[%clk 0:03:15]} 48. Kg5 {[%clk 0:02:29]} 48... c4 {[%clk 0:03:14.6]} 49. a6
{[%clk 0:02:17.8]} 49... Kc6 {[%clk 0:03:03]} 50. a7 {[%clk 0:02:00.8]} 50...
Kb7 {[%clk 0:03:04.3]} 51. h5 {[%clk 0:01:37.3]} 51... c3 {[%clk 0:03:05.3]} 52.
h6 {[%clk 0:01:28.8]} 52... c2 {[%clk 0:03:06.7]} 53. Be3 {[%clk 0:01:30.7]}
53... d4 {[%clk 0:03:08.7]} 54. Bd2 {[%clk 0:01:23.9]} 54... Kxa7 {[%clk
0:02:22.4]} 55. h7 {[%clk 0:01:25.1]} 55... Be4 {[%clk 0:02:22.1]} 56. h8=Q
{[%clk 0:01:21.6]} 56... d3 {[%clk 0:02:22.8]} 57. Qg7+ {[%clk 0:00:58.1]} 57...
Ka6 {[%clk 0:02:04.5]} 58. Qf6+ {[%clk 0:00:58]} 58... Kb7 {[%clk 0:02:05.2]}
59. Qe7+ {[%clk 0:00:58.7]} 59... Ka6 {[%clk 0:02:00.2]} 60. Qd6+ {[%clk
0:00:55.7]} 60... Kb7 {[%clk 0:02:01.9]} 61. Qd7+ {[%clk 0:00:52.5]} 61... Ka6
{[%clk 0:02:03.9]} 62. Be3 {[%clk 0:00:43.7]} 62... Ka5 {[%clk 0:01:52.3]} 63.
Qd6 {[%clk 0:00:34.4]} 63... Ka4 {[%clk 0:01:41.5]} 64. Bd2 {[%clk 0:00:31.3]}
64... Kb5 {[%clk 0:01:36.1]} 65. Qe5+ {[%clk 0:00:29]} 65... Kc6 {[%clk
0:01:32.8]} 66. Qe6+ {[%clk 0:00:29.2]} 66... Kb5 {[%clk 0:01:33.4]} 67. Qd6
{[%clk 0:00:29]} 67... Kc4 {[%clk 0:01:28.8]} 68. Qc7+ {[%clk 0:00:26.8]} 68...
Kd5 {[%clk 0:01:17.8]} 69. Qe5+ {[%clk 0:00:26]} 69... Kc6 {[%clk 0:01:15.3]}
70. Qc3+ {[%clk 0:00:19.4]} 70... Kd5 {[%clk 0:01:14.2]} 71. Be3 {[%clk
0:00:18.1]} 71... Ke6 {[%clk 0:01:12.6]} 72. Qc5 {[%clk 0:00:18.8]} 72... Kd7
{[%clk 0:01:10.8]} 73. Qc3 {[%clk 0:00:14.9]} 73... Ke6 {[%clk 0:01:02.1]} 74.
Qe5+ {[%clk 0:00:14.3]} 74... Kd7 {[%clk 0:01:04]} 75. Qg7+ {[%clk 0:00:11.3]}
75... Kc6 {[%clk 0:01:01.8]} 76. Qg6+ {[%clk 0:00:13.3]} 76... Kd7 {[%clk
0:01:03.7]} 77. Qa6 {[%clk 0:00:10.2]} 77... Ke7 {[%clk 0:01:02.8]} 78. Qa7+
{[%clk 0:00:11.1]} 78... Ke6 {[%clk 0:01:01.7]} 79. Qb6+ {[%clk 0:00:12.1]}
79... Kd7 {[%clk 0:01:02.7]} 80. Qd4+ {[%clk 0:00:08]} 80... Ke6 {[%clk
0:01:03.8]} 81. Qe5+ {[%clk 0:00:09.7]} 81... Kd7 {[%clk 0:01:05.9]} 82. Qg7+
{[%clk 0:00:11.3]} 82... Kc6 {[%clk 0:01:07.4]} 83. Qg6+ {[%clk 0:00:12.5]}
83... Kd7 {[%clk 0:01:09]} 84. Qa6 {[%clk 0:00:11.4]} 84... Ke7 {[%clk
0:01:09.5]} 85. Qa7+ {[%clk 0:00:12.3]} 85... Kd6 {[%clk 0:01:11.1]} 86. Qb6+
{[%clk 0:00:11.1]} 86... Ke7 {[%clk 0:01:12.4]} 87. Bc5+ {[%clk 0:00:09.7]}
87... Kd7 {[%clk 0:01:09.8]} 88. Qa7+ {[%clk 0:00:09.4]} 88... Ke6 {[%clk
0:01:07.4]} 89. Qb6+ {[%clk 0:00:10.5]} 89... Kd7 {[%clk 0:01:08.8]} 90. Be3
{[%clk 0:00:08.8]} 90... Ke7 {[%clk 0:01:09.4]} 91. Qb4+ {[%clk 0:00:09.9]}
91... Ke6 {[%clk 0:01:10.1]} 92. Qc4+ {[%clk 0:00:10.7]} 92... Kd7 {[%clk
0:01:09.6]} 93. Qd4+ {[%clk 0:00:09.5]} 93... Ke6 {[%clk 0:01:09.8]} 94. Qc3
{[%clk 0:00:09.4]} 94... Kd7 {[%clk 0:01:08]} 95. Qg7+ {[%clk 0:00:09.2]}
1/2-1/2

[Event "Rapid della Domenica"]
[Site "Chess.com"]
[Date "2020.05.17"]
[Round "2"]
[White "malberici"]
[Black "ottovolante"]
[Result "1-0"]
[WhiteElo "1558"]
[BlackElo "996"]
[TimeControl "720+3"]
[EndTime "6:37:21 PDT"]
[Termination "malberici ha vinto per abbandono"]

1. d4 {[%clk 0:12:02.9]} 1... e6 {[%clk 0:11:57.1]} 2. c4 {[%clk 0:12:04]} 2...
Nf6 {[%clk 0:11:54.2]} 3. a3 {[%clk 0:12:05.9]} 3... d5 {[%clk 0:11:53.4]} 4. e3
{[%clk 0:12:03.6]} 4... Nc6 {[%clk 0:11:51]} 5. Nf3 {[%clk 0:12:04.2]} 5... h6
{[%clk 0:11:51.5]} 6. Nc3 {[%clk 0:12:05.9]} 6... a6 {[%clk 0:11:51.5]} 7. cxd5
{[%clk 0:12:08]} 7... Nxd5 {[%clk 0:11:49.6]} 8. Bd3 {[%clk 0:12:07.6]} 8...
Nxc3 {[%clk 0:11:50.3]} 9. bxc3 {[%clk 0:12:08.8]} 9... f6 {[%clk 0:11:33.6]}
10. O-O {[%clk 0:12:10.8]} 10... Ne7 {[%clk 0:11:24]} 11. Nh4 {[%clk 0:12:09.2]}
11... Nf5 {[%clk 0:11:12.8]} 12. Qh5+ {[%clk 0:12:06.3]} 12... Ke7 {[%clk
0:11:09.6]} 13. Ng6+ {[%clk 0:11:58.4]} 13... Kd6 {[%clk 0:11:06.9]} 14. Nxh8
{[%clk 0:11:59.9]} 14... c6 {[%clk 0:10:50.4]} 15. Nf7+ {[%clk 0:11:59.5]} 15...
Kc7 {[%clk 0:10:48.6]} 16. Nxd8 {[%clk 0:12:00.9]} 16... Kxd8 {[%clk 0:10:49.5]}
17. Bxf5 {[%clk 0:11:39.1]} 17... exf5 {[%clk 0:10:48.9]} 18. Qf7 {[%clk
0:11:37.9]} 18... Be7 {[%clk 0:10:40]} 19. Qxg7 {[%clk 0:11:38.9]} 19... Be6
{[%clk 0:10:31.4]} 20. Qh8+ {[%clk 0:11:32.4]} 1-0